[Event "Czech Open-Rapid 2022"]
[Site "Pardubice"]
[Date "2022.07.21"]
[Round "7.4"]
[White "Stocek, Jiri"]
[Black "Dobrowolski, Piotr"]
[Result "1-0"]
[ECO "A40"]
[WhiteElo "2548"]
[BlackElo "2423"]
[Annotator "TA"]
[PlyCount "69"]
[EventDate "2022.07.20"]
[EventType "swiss"]
[EventCountry "CZE"]
[SourceTitle "playchess.com"]
[Source "ChessBase"]
[SourceQuality "1"]
[TimeControl "1200+10"]

{[%evp 9,69,44,63,25,25,31,29,40,77,17,62,27,38,18,33,18,27,35,49,42,53,35,50,45,64,67,66,58,68,68,66,46,90,42,41,59,58,31,12,13,12,19,27,-1,-7,0,75,-56,515,510,659,649,631,597,1640,1521,1402,1387,1343,1335,29993,29994]} 1. d4 {[%emt 0:03:14]} e6 {[%emt 0:00:58]} 2. c4 {[%emt 0:00:12]} c5 {[%emt 0:00:14]} 3. d5 {[%emt 0:00:13]} exd5 {[%emt 0:00:05]} 4. cxd5 {[%emt 0:00:02]} d6 {[%emt 0:00:03]} 5. e4 {[%emt 0:00:14]} g6 {[%emt 0:00:08]} 6. Ne2 {[%emt 0:00:14] A43: Schmid Benoni.} Bg7 {[%emt 0:00:07]} 7. Nec3 {[%emt 0:00:02]} Ne7 {[%emt 0:00:08] [#]} 8. h4 $146 {[%emt 0:00:12] White has an edge.} ({Predecessor:} 8. Bb5+ Bd7 9. Bd3 O-O 10. Nd2 Na6 11. O-O f5 12. exf5 Nxf5 13. Nde4 Be5 14. Ng5 {0-1 (39) Franic,M (2392)-Horvath,C (2534) Sibenik 2006}) 8... h5 {[%emt 0:00:23]} 9. Be2 {[%emt 0:00:16]} ({White should play} 9. Bf4 $16) 9... a6 {[%emt 0:00:08] Prevents Nb5.} 10. a4 {[%emt 0:00:02]} Nd7 {[%emt 0:00:11]} 11. Bg5 {[%emt 0:00:14]} Ne5 {[%emt 0:00:19]} 12. Na3 {[%emt 0:00:46]} Rb8 {[%emt 0:00:11]} 13. Nc4 {[%emt 0:00:14]} Nxc4 {[%emt 0:00:34]} 14. Bxc4 {[%emt 0:00:02]} O-O {[%emt 0:01:01]} 15. Qd2 {[%emt 0:00:16]} Kh7 {[%emt 0:01:10]} 16. O-O {[%emt 0:00:38]} Qd7 {[%emt 0:02:09]} 17. a5 {[%emt 0:00:27] White is more active.} b5 {[%emt 0:00:34] Inhibits Na4.} 18. axb6 {[%emt 0:00:02]} Rxb6 {[%emt 0:00:01]} 19. Rfe1 {[%emt 0:00:10]} f6 {[%emt 0:01:50]} 20. Bf4 {[%emt 0:00:11]} g5 $1 {[%emt 0:00:42]} 21. Bh2 {[%emt 0:01:11]} (21. hxg5 $16 {Bd3 is the strong threat.} Ng6 22. Bh2) 21... Ng6 $14 {[%emt 0:02:59]} 22. hxg5 {[%emt 0:02:07]} fxg5 {[%emt 0:01:50]} 23. e5 $36 {[%emt 0:03:09][%mdl 2048] White has some pressure.} Bxe5 {[%emt 0:01:05]} 24. Bd3 {[%emt 0:00:29] Hoping for Na4.} Bxh2+ {[%emt 0:00:20]} 25. Kxh2 {[%emt 0:00:02]} Qd8 {[%emt 0:01:30]} 26. Qc2 {[%emt 0:02:23]} (26. Qe2 Kh6 27. Bxg6 Kxg6 $17) 26... Qf6 {[%emt 0:00:57]} 27. Ne4 {[%emt 0:00:34]} Qxb2 {[%emt 0:00:28]} (27... Qf4+ $11 {remains equal.} 28. Ng3 Qf7) 28. Qd1 {[%emt 0:02:20]} (28. Nxg5+ Kh6 29. Qxb2 Rxb2 $15) (28. Qxb2 $16 Rxb2 29. Nxd6) 28... Kh6 $2 {[%emt 0:01:35][%mdl 8192] [#] Loses the game.} ({Don't play} 28... Qe5+ 29. Ng3 Qf6 30. Qxh5+ Kg7 31. Bxg6 (31. Rab1 $2 Rxb1 32. Bxb1 Rh8 $19) 31... Qxg6 32. Re7+ Rf7 33. Rxf7+ Kxf7 34. Qh8 $11) (28... Qd4 $1 $15 {stays ahead.} 29. Nxg5+ Kg7) 29. Rb1 $1 $18 {[%emt 0:01:22][%mdl 64] Skewer} ({Avoid the trap} 29. Ng3 $2 Bg4 30. Re6 Bxd1 $19) 29... Qe5+ {[%emt 0:01:01]} 30. Ng3 {[%emt 0:00:04]} Bg4 {[%emt 0:00:05][%cal Oe5d4] aiming for ...Qd4!} 31. Qc2 {[%emt 0:00:58]} h4 {[%emt 0:01:53]} 32. Rxe5 {[%emt 0:00:14][%cal Od3g6]} hxg3+ {[%emt 0:00:02]} 33. Kxg3 {[%emt 0:00:14][%cal Od3g6]} Rxb1 {[%emt 0:00:02] [#]} 34. Bxg6 $1 {[%emt 0:00:21] Threatening mate with Re7.} Rg1 {[%emt 0:00:11]} (34... Rb7 35. Re1) 35. Re7 {[%emt 0:00:38] Weighted Error Value: White=0.24 (precise) /Black=0.52} 1-0

[Event "Czech Open-Rapid 2022"]
[Site "Pardubice"]
[Date "2022.07.21"]
[Round "7.5"]
[White "Pulpan, Jakub"]
[Black "Kraus, Ondrej"]
[Result "1-0"]
[ECO "A05"]
[WhiteElo "2424"]
[BlackElo "1993"]
[Annotator "TA"]
[PlyCount "41"]
[EventDate "2022.07.20"]
[EventType "swiss"]
[EventCountry "CZE"]
[SourceTitle "playchess.com"]
[Source "ChessBase"]
[SourceQuality "1"]
[TimeControl "1200+10"]

{[%evp 9,41,-33,-29,-54,-20,-17,-33,-20,0,8,22,21,65,0,84,84,87,82,78,89,109,111,115,121,118,120,106,103,104,101,117,91,408,385]} 1. Nf3 {[%emt 0:00:04]} Nf6 {[%emt 0:00:06]} 2. b3 {[%emt 0:00:01]} d5 {[%emt 0:00:08]} 3. Bb2 {[%emt 0:00:01]} c5 {[%emt 0:00:08]} 4. g3 {[%emt 0:00:21]} Nc6 {[%emt 0:00:14]} 5. d4 {[%emt 0:00:07]} Bg4 {[%emt 0:00:29]} (5... Qa5+ {keeps more tension.} 6. Nbd2 Ne4 7. dxc5 e5) 6. Nbd2 {[%emt 0:00:13] A06: Réti Opening: 1 Nf3 d5.} e6 {[%emt 0:00:12] [#]} 7. Bg2 $146 {[%emt 0:00:03]} ({Predecessor:} 7. h3 Bh5 8. Bg2 Rc8 9. c4 dxc4 10. Nxc4 b5 11. Nce5 Bxf3 12. Nxf3 cxd4 13. Nxd4 {0-1 (27) Schlippe,A-Schiff,A (2160) St Ingbert 1998}) 7... cxd4 {[%emt 0:00:45]} 8. Nxd4 {[%emt 0:00:02] Black is slightly better.} Bd6 {[%emt 0:03:00]} 9. O-O {[%emt 0:00:10]} O-O {[%emt 0:00:41]} 10. c4 {[%emt 0:00:29]} e5 {[%emt 0:01:25]} 11. Nb5 {[%emt 0:01:29]} (11. Nxc6 $14 bxc6 12. h3) 11... Bb8 {[%emt 0:01:55]} (11... d4 $1 $11 {remains equal.}) 12. cxd5 $16 {[%emt 0:00:44]} Nxd5 {[%emt 0:00:17]} 13. Nc4 {[%emt 0:00:38]} Nb6 {[%emt 0:01:40]} 14. Ba3 {[%emt 0:01:48]} Qxd1 {[%emt 0:02:44]} 15. Rfxd1 {[%emt 0:00:37]} ({Much less strong is} 15. Raxd1 Bxe2 16. Bxf8 Kxf8 $14) 15... Bxe2 {[%emt 0:00:07]} 16. Nxb6 {[%emt 0:00:48] 0x0.0013b8bce623dp-1022s more active pieces. The black rooks are badly placed.} (16. Bxf8 {feels hotter.} Bxd1 17. Rxd1 Kxf8 18. Nxb6 axb6 19. Rd7) 16... axb6 {[%emt 0:00:19]} 17. Bxf8 {[%emt 0:00:02]} Bxd1 {[%emt 0:00:13]} 18. Rxd1 {[%emt 0:00:09]} Kxf8 {[%emt 0:00:14] [#]} 19. Rd7 $1 {[%emt 0:00:24]} Nd4 {[%emt 0:03:42]} (19... Rxa2 $2 20. Bd5 Na7 21. Nc3 $18 (21. Rxf7+ Ke8 $16) (21. Rxb7 Nxb5 22. Rxb8+ Ke7 $11)) 20. Bxb7 {[%emt 0:01:29]} Ke8 $2 {[%emt 0:00:30][%mdl 8192]} (20... Rxa2 $16 {is tougher.} 21. Nxd4 exd4) 21. Rxd4 {[%emt 0:00:06] White took control after the opening.  Weighted Error Value: White=0.07 (flawless) /Black=0.47} 1-0

[Event "Czech Open-Rapid 2022"]
[Site "Pardubice"]
[Date "2022.07.21"]
[Round "7.6"]
[White "Neuman, Petr"]
[Black "Akesson, Ralf"]
[Result "0-1"]
[ECO "A30"]
[WhiteElo "2378"]
[BlackElo "2427"]
[Annotator "TA"]
[PlyCount "148"]
[EventDate "2022.07.20"]
[EventType "swiss"]
[EventCountry "CZE"]
[SourceTitle "playchess.com"]
[Source "ChessBase"]
[SourceQuality "1"]
[TimeControl "1200+10"]

{[%evp 25,148,19,12,12,50,40,37,16,18,17,14,10,132,-4,0,-14,-6,-20,-31,-36,-35,-77,-81,-89,-76,-119,-118,-110,-118,-103,-126,-115,-72,-256,-136,-116,-122,-246,-249,-287,-266,-298,-281,-288,-275,-372,-203,-204,-177,-276,-141,-203,-190,-204,-203,-211,-174,-172,-172,-172,-171,-170,-22,-171,-167,-162,-99,-99,-99,-99,-99,-99,-99,-99,-99,-99,-99,-99,-99,-99,-99,-99,-99,-99,-99,-99,-99,-99,-99,-99,-99,-99,-99,-119,-119,-672,-363,-4320,-2980,-4899,-3933,-3361,-3227,-2750,-1136,-8871,-10087,-12575,-5515,-29966,-29957,-11708,-29950,-29965,-29967,-29965,-29958,-8088,-7664,-29976,-29977,-29981,-29981,-29981,-29979]} 1. c4 {[%emt 0:00:05]} Nf6 {[%emt 0:00:07]} 2. Nc3 {[%emt 0:00:02]} c5 {[%emt 0:00:04]} 3. g3 {[%emt 0:00:03]} e6 {[%emt 0:00:03]} 4. Nf3 {[%emt 0:00:02]} b6 {[%emt 0:00:02]} 5. Bg2 {[%emt 0:00:02]} Bb7 {[%emt 0:00:02]} 6. O-O {[%emt 0:00:03]} Be7 {[%emt 0:00:02]} 7. Re1 {[%emt 0:00:05]} d5 {[%emt 0:01:17]} 8. cxd5 {[%emt 0:00:06]} Nxd5 {[%emt 0:00:11]} 9. e4 {[%emt 0:00:29]} Nb4 {[%emt 0:00:20]} 10. d4 {[%emt 0:00:06]} cxd4 {[%emt 0:00:08]} 11. Nxd4 {[%emt 0:00:03]} O-O {[%emt 0:00:23]} 12. Be3 {[%emt 0:00:19]} N8c6 {[%emt 0:00:28]} 13. Nxc6 {[%emt 0:00:36]} Nxc6 {[%emt 0:00:28]} 14. Qa4 {[%emt 0:00:25] A30: Symmetrical English: Double Fianchetto and Hedgehog.} a6 {[%emt 0:01:34]} 15. Red1 {[%emt 0:00:13]} Qc7 {[%emt 0:00:09]} 16. Bf4 {[%emt 0:00:42] White is slightly better.} Qc8 {[%emt 0:00:23]} 17. Rac1 {[%emt 0:00:57] [#] With the idea Qb3.} b5 $146 {[%emt 0:00:37]} ({Predecessor:} 17... Rd8 18. Nd5 Bc5 19. b4 exd5 20. bxc5 b5 21. Qc2 d4 22. Bd6 Qe6 23. Qb2 Re8 {0-1 (59) Wolfsteiner,H (2195)-Schnelzer,R (2285) Bayern 1999}) 18. Qc2 {[%emt 0:00:02]} Rd8 {[%emt 0:00:33] [#]} (18... Qe8 $11) 19. Rxd8+ {[%emt 0:02:05]} ({White has to play} 19. Nd5 $1 $16 {[%cal Oc2c6][%mdl 512]} exd5 20. exd5) 19... Qxd8 $11 {[%emt 0:00:19]} 20. Rd1 {[%emt 0:00:07]} Qe8 {[%emt 0:00:43]} 21. Be3 {[%emt 0:03:44]} Rc8 {[%emt 0:00:14]} 22. Qd2 {[%emt 0:00:26]} Ne5 {[%emt 0:00:27] Inhibits Qd7.} 23. Qe2 {[%emt 0:00:36]} b4 $1 {[%emt 0:01:45]} 24. Nb1 {[%emt 0:00:06]} Bc6 {[%emt 0:00:38][%cal Bb7c6,Bc6b5,Bb5a4][%mdl 32]} 25. Qxa6 {[%emt 0:01:40]} Ra8 {[%emt 0:01:34][%mdl 64] Skewer} 26. Qe2 {[%emt 0:00:21]} Rxa2 {[%emt 0:00:20] ...Bb5 is the strong threat.} 27. Bd4 {[%emt 0:02:07]} Bb5 {[%emt 0:01:07]} 28. Qe3 {[%emt 0:00:02]} Nc6 {[%emt 0:01:13] Black is more active.} 29. e5 $2 {[%emt 0:02:13]} (29. Bf1 $17 Bxf1 30. Kxf1) 29... Nxd4 {[%emt 0:01:05]} (29... Qd7 $19 30. Rd2 Nxd4 31. Rxd4 Qc7) 30. Qxd4 $17 {[%emt 0:00:02]} Qc8 $36 {[%emt 0:00:37][%mdl 2048] Keeping White busy.} 31. Bf1 {[%emt 0:00:31]} (31. Qd2 $17) 31... Ba4 $19 {[%emt 0:01:02] A strong pair of Bishops.} 32. Re1 {[%emt 0:00:37]} Qc2 {[%emt 0:00:33]} 33. Nd2 {[%emt 0:00:22]} Qxb2 {[%emt 0:00:29]} 34. Qxb2 {[%emt 0:00:10]} Rxb2 {[%emt 0:00:02]} 35. Ne4 {[%emt 0:00:21]} b3 {[%emt 0:00:35]} (35... Bc2 $142 36. Bc4 b3) 36. Bd3 {[%emt 0:00:15]} h6 {[%emt 0:01:08]} 37. Kf1 {[%emt 0:00:22]} (37. Rc1 $142) 37... Ra2 {[%emt 0:01:04]} (37... Ba3 $19 {[%cal Ob2c2] aiming for ...Rc2!} 38. Ra1 Ra2) 38. Nc3 {[%emt 0:00:18]} (38. Rb1 $17 {was necessary.}) 38... Rd2 {[%emt 0:00:04]} 39. Nxa4 {[%emt 0:00:12] Threatens to win with Be4.} Rxd3 {[%emt 0:00:02][%mdl 4096] Endgame KRB-KRN} 40. Rb1 {[%emt 0:00:25]} Ba3 {[%emt 0:00:49][%cal Ob3b2]} 41. Ke2 {[%emt 0:00:13]} Rd4 {[%emt 0:00:04]} 42. Nc3 {[%emt 0:00:03]} Rb4 {[%emt 0:00:51]} 43. Kd3 {[%emt 0:00:05]} Rb8 {[%emt 0:00:17]} ({Black should try} 43... b2 $19 {White must now prevent ...g5.} 44. Ne4 Rb5) 44. Ne4 {[%emt 0:00:13]} (44. Kc4 $1 $11) 44... b2 {[%emt 0:00:15]} 45. Nd2 {[%emt 0:00:16]} g5 {[%emt 0:01:21]} (45... Rd8+ $19 46. Kc2 Rc8+ 47. Kb3 Bc5 48. Rxb2 Bxf2) 46. Nc4 $17 {[%emt 0:00:08]} Bc5 {[%emt 0:00:02]} 47. Rxb2 {[%emt 0:00:47]} Rxb2 {[%emt 0:00:10]} 48. Nxb2 {[%emt 0:00:01]} Bxf2 {[%emt 0:00:02] KB-KN} 49. g4 {[%emt 0:00:01]} Kf8 {[%emt 0:00:26]} 50. Ke4 {[%emt 0:00:07]} Ke7 {[%emt 0:00:05]} 51. Nd3 {[%emt 0:00:02]} Bg1 {[%emt 0:00:04]} 52. h3 {[%emt 0:00:02]} Kd7 {[%emt 0:00:09]} 53. Ne1 {[%emt 0:00:20]} Kc6 {[%emt 0:00:15]} 54. Nf3 {[%emt 0:00:02]} Bf2 {[%emt 0:00:02]} 55. Nd2 {[%emt 0:00:03]} Kc5 {[%emt 0:00:14]} 56. Nb3+ {[%emt 0:00:02]} Kb4 {[%emt 0:00:24]} 57. Nc1 {[%emt 0:00:15]} Kc4 {[%emt 0:00:11]} 58. Kf3 {[%emt 0:00:20]} Bb6 {[%emt 0:00:17]} 59. Ke4 {[%emt 0:00:04]} Kc3 {[%emt 0:00:05]} 60. Ne2+ $2 {[%emt 0:00:25][%mdl 8192]} (60. Nd3 $17) 60... Kd2 $1 $19 {[%emt 0:00:02]} 61. Ng3 $2 {[%emt 0:00:03]} (61. Kf3 Kd3 62. Nc1+ Kd4 63. Kf2) 61... Ke1 {[%emt 0:00:16]} 62. Nh5 {[%emt 0:00:36]} Kf2 {[%emt 0:00:02]} 63. Nf6 {[%emt 0:00:01] [#]} Bc5 $1 {[%emt 0:00:33] Hoping for ...Kg3.} 64. Ne8 {[%emt 0:00:16]} Kg3 {[%emt 0:01:06]} (64... Kg2 $142 65. Nd6 Kxh3 66. Nxf7 Kxg4 67. Nxh6+ Kh3) 65. Nd6 {[%emt 0:00:02]} Kxh3 {[%emt 0:00:03]} 66. Nxf7 {[%emt 0:00:02]} Kxg4 {[%emt 0:00:07] ( -> ...h5)} 67. Nxh6+ {[%emt 0:00:05]} Kh4 {[%emt 0:00:15]} 68. Nf7 {[%emt 0:00:14]} Be7 {[%emt 0:00:13]} 69. Kf3 {[%emt 0:00:31] [#]} Kh3 $1 {[%emt 0:00:10]} ({And not} 69... g4+ 70. Kg2 $11) 70. Nh6 {[%emt 0:00:11]} Bc5 {[%emt 0:00:08]} 71. Ng4 {[%emt 0:00:40]} Bd4 {[%emt 0:00:02]} 72. Nh6 {[%emt 0:00:02]} Bxe5 {[%emt 0:00:09] Black mates.} 73. Ng4 {[%emt 0:00:02]} Bd4 {[%emt 0:00:15]} 74. Nh6 {[%emt 0:00:13]} e5 {[%emt 0:00:03] Weighted Error Value: White=0.42/Black=0.23 (precise)} 0-1

[Event "Czech Open-Rapid 2022"]
[Site "Pardubice"]
[Date "2022.07.21"]
[Round "7.7"]
[White "Babula, Vlastimil sr"]
[Black "Rasik, Vitezslav"]
[Result "1-0"]
[ECO "E91"]
[WhiteElo "2556"]
[BlackElo "2419"]
[Annotator "TA"]
[PlyCount "169"]
[EventDate "2022.07.20"]
[EventType "swiss"]
[EventCountry "CZE"]
[SourceTitle "playchess.com"]
[Source "ChessBase"]
[SourceQuality "1"]
[TimeControl "1200+10"]

{[%evp 19,169,48,50,60,87,93,97,70,74,64,62,60,51,64,93,22,31,37,28,-35,18,0,0,0,0,9,139,32,32,26,23,28,29,29,26,27,13,0,39,57,250,239,228,85,285,278,302,297,425,425,408,410,356,379,346,29,33,0,0,0,186,179,171,164,258,50,41,39,258,252,250,250,250,250,295,215,314,307,312,303,419,369,402,388,453,363,471,356,487,431,1258,1212,883,608,1319,1150,6220,1976,6220,6220,6220,6220,6220,6207,6213,6199,6118,6108,6199,6199,6123,6079,6093,0,6078,6012,6014,5999,5884,5636,5299,5093,1517,0,5393,5283,5081,5069,6015,5003,6015,6008,5971,5726,5057,5057,5044,5029,5037,5018,5029,4962,4955,4955,4955,4922,4922,4922,29985,29986,29986,29987]} 1. d4 {[%emt 0:00:03] ChessBase II} d6 {[%emt 0:00:02]} 2. Nf3 {[%emt 0:00:04]} g6 {[%emt 0:00:03]} 3. c4 {[%emt 0:00:04]} Bg7 {[%emt 0:00:03]} 4. Nc3 {[%emt 0:00:04]} Nf6 {[%emt 0:00:04]} 5. e4 {[%emt 0:00:04]} O-O {[%emt 0:00:05]} 6. Be2 {[%emt 0:00:12]} Nbd7 {[%emt 0:00:08]} 7. O-O {[%emt 0:00:16]} e5 {[%emt 0:00:07]} 8. Qc2 {[%emt 0:00:33]} Re8 {[%emt 0:01:43]} 9. Rd1 {[%emt 0:00:20]} c6 {[%emt 0:01:30]} 10. Rb1 {[%emt 0:00:59]} Qe7 {[%emt 0:01:34]} 11. d5 {[%emt 0:00:33] E94: King's Indian: Classical: 6 Be2 e5 7 0-0: Various Black 7th moves.} c5 {[%emt 0:00:51]} 12. Ne1 {[%emt 0:01:49]} Rf8 {[%emt 0:00:54]} 13. Nd3 {[%emt 0:00:45] White is better.} Ne8 {[%emt 0:01:11] [#]} 14. b4 $146 {[%emt 0:00:13]} ({Predecessor:} 14. Be3 f5 15. f3 f4 16. Bf2 g5 17. b4 b6 18. bxc5 Nxc5 19. Nb4 h5 20. Nc6 {0-1 (38) Jacoby,G (2310)-Tuerk,H Germany North 1979 EXT 2018 [ChessBase II]}) 14... cxb4 {[%emt 0:01:28]} 15. Rxb4 {[%emt 0:00:05]} f5 {[%emt 0:00:08]} 16. a4 {[%emt 0:01:27]} Nef6 {[%emt 0:01:08]} 17. Bf3 {[%emt 0:01:03]} (17. exf5 $16 gxf5 18. Nb5 (18. Bg5 a6 $14)) 17... fxe4 {[%emt 0:01:31]} 18. Bxe4 {[%emt 0:00:15]} b6 {[%emt 0:01:04]} 19. a5 {[%emt 0:00:11]} (19. Bg5 $11) 19... Nc5 {[%emt 0:00:21] [#]} (19... bxa5 $15 20. Rb5 Ba6 21. Rxa5 Bxc4) 20. Bg5 $1 {[%emt 0:00:18]} bxa5 {[%emt 0:02:35]} 21. Rb5 {[%emt 0:00:24] Threatens to win with Nxc5.} Ncxe4 {[%emt 0:02:43]} 22. Nxe4 {[%emt 0:00:05] c5 is the strong threat.} a6 {[%emt 0:00:40]} (22... Bf5 $11 {keeps the balance.} 23. Re1 Bxe4 24. Rxe4 Qc7 25. Bxf6 Bxf6) 23. Rb6 {[%emt 0:01:38] White is much more active.} (23. Rxa5 $6 Bf5 24. Ng3 Qd7 $14) (23. Bxf6 $1 $16 Bxf6 24. Rb6 (24. Rxa5 Bf5 $14)) 23... Qa7 $14 {[%emt 0:00:12]} 24. Nxf6+ {[%emt 0:00:03]} Bxf6 {[%emt 0:00:05]} 25. Be3 {[%emt 0:00:02]} Bg5 {[%emt 0:00:38] Strongly threatening ...Bxe3.} 26. c5 $1 {[%emt 0:00:17]} (26. Rxd6 $2 Bxe3 27. fxe3 Qxe3+ 28. Nf2 Bg4 $19) 26... Bxe3 {[%emt 0:00:09]} 27. fxe3 {[%emt 0:00:02]} dxc5 {[%emt 0:00:31]} 28. Rdb1 {[%emt 0:00:08]} Qf7 {[%emt 0:00:41]} (28... Bf5 29. Rb7 c4 30. Rxa7 Bxd3 31. Qc3 $1 Rxa7 32. Rc1 $16) (28... c4 $5 29. Qxc4 Bf5 30. d6+ Qf7 31. Qxf7+ Rxf7 $11) 29. e4 {[%emt 0:00:08][%mdl 1024] White has compensation.} (29. Qxc5 $2 e4 30. Nf4 g5 $19) 29... Qe7 $2 {[%emt 0:01:16]} (29... c4 $14 30. Nxe5 (30. Qxc4 Bd7 $11) 30... Qf4 31. Nxc4 a4) 30. d6 $1 $18 {[%emt 0:04:41]} (30. Nxc5 Ra7 $14) (30. Qxc5 Qxc5+ 31. Nxc5 Bg4 $14) 30... Qg5 {[%emt 0:00:13]} 31. Qc1 {[%emt 0:00:21] Against Qe3+} (31. Nxc5 Qe3+ 32. Kh1 Ra7 $16) (31. Qxc5 $18 Bd7 32. Rb7 (32. Nxe5 $2 Rac8 $19)) 31... Qh4 $2 {[%emt 0:00:24]} (31... Qxc1+ $16 {might work better.} 32. Rxc1 Bd7) 32. Qc4+ {[%emt 0:00:26]} Kh8 {[%emt 0:00:11]} 33. Qd5 {[%emt 0:00:17]} (33. Qxc5 Qxe4 34. Qxe5+ Qxe5 35. Nxe5 Bf5 $16) 33... Bd7 {[%emt 0:00:44]} (33... c4 $142) 34. Qxe5+ {[%emt 0:00:32]} Kg8 {[%emt 0:00:15]} 35. Qd5+ {[%emt 0:00:21]} (35. Rb7 Rad8 $18) 35... Kh8 {[%emt 0:00:02]} 36. Rb7 {[%emt 0:01:50]} (36. Nxc5 $2 {leads to mate.} Qf2+ 37. Kh1 Qf1+ $3 {[%mdl 512]} 38. Rxf1 Rxf1#) (36. Qxc5 Qxe4 37. Qc3+ Kg8 $16) 36... Bb5 {[%emt 0:00:04]} 37. Qe5+ {[%emt 0:00:41] Chess con chili.} (37. Kh1 Qf6 38. h3 Bxd3 39. Qxd3 Qd4 40. Qxd4+ cxd4 $18) (37. h3 $18) 37... Qf6 $11 {[%emt 0:00:07]} 38. Qxf6+ {[%emt 0:00:17]} (38. Rd1 $5 {[%cal Re5f6]}) 38... Rxf6 {[%emt 0:00:01]} 39. e5 {[%emt 0:00:12]} ({Don't play} 39. Nxc5 Rxd6 40. e5 Rd4 $17) 39... Re6 {[%emt 0:00:26] [#]} (39... Bxd3 $11 40. exf6 Bxb1 41. Rxb1 a4) 40. d7 $1 $36 {[%emt 0:01:24][%cal Ob7c7][%mdl 2048] Black must now prevent Rc7! Keeping Black busy.} Rd8 {[%emt 0:00:31]} 41. Rc7 {[%emt 0:00:39]} Kg7 {[%emt 0:00:21]} (41... Bxd3 $2 42. Rc8 Ree8 43. dxe8=Q+ $18) (41... Rxd7 $142 42. Rxd7 Bxd7) 42. Rxb5 $2 {[%emt 0:01:06]} axb5 $14 {[%emt 0:00:04]} 43. Nxc5 {[%emt 0:00:01]} Rxe5 {[%emt 0:00:11] [#] Black is now going downhill.} (43... Kf7 $1 $14 44. Rc8 Rxd7 45. Nxd7 a4) 44. Nb7 $1 $18 {[%emt 0:00:07][%csl LRa5,LRd8]} Rxd7 {[%emt 0:00:10]} (44... Re1+ $2 45. Kf2 Rc1 46. Nxd8 $18) 45. Rxd7+ {[%emt 0:00:01][%mdl 4096] Endgame KRN-KR} Kf6 {[%emt 0:00:13]} 46. Nxa5 {[%emt 0:00:04]} h5 {[%emt 0:00:02]} 47. Kf2 {[%emt 0:00:06]} Rc5 {[%emt 0:00:07]} (47... Rf5+ $142 48. Ke3 Re5+ 49. Kf3 Rf5+ 50. Ke3 Re5+ 51. Kf2 Rf5+ 52. Ke2 Rg5) 48. Nb3 {[%emt 0:00:07]} Rc2+ {[%emt 0:00:07]} 49. Nd2 {[%emt 0:00:03]} b4 {[%emt 0:00:07]} 50. Ke3 {[%emt 0:00:25]} Rc3+ {[%emt 0:00:25]} 51. Ke2 {[%emt 0:00:03]} Rc2 {[%emt 0:00:09]} 52. Rb7 {[%emt 0:00:06]} Rb2 {[%emt 0:00:03]} 53. Rb5 {[%emt 0:00:14]} h4 {[%emt 0:00:09]} 54. Ke3 {[%emt 0:00:20]} h3 {[%emt 0:00:19]} (54... g5 $142 55. Ne4+ Ke7 56. Rxg5 h3) 55. gxh3 {[%emt 0:00:06]} Kg7 {[%emt 0:00:05]} 56. h4 {[%emt 0:00:08]} Kh6 {[%emt 0:00:01]} 57. Nf3 {[%emt 0:00:12] And now Rb7 would win.} b3 {[%emt 0:00:16]} 58. Nd2 {[%emt 0:00:12]} Kg7 {[%emt 0:00:21]} 59. Rxb3 {[%emt 0:00:05]} Rc2 {[%emt 0:00:11]} 60. Nf3 {[%emt 0:00:06]} Rc7 {[%emt 0:00:03]} 61. Rb4 {[%emt 0:00:13]} Kh6 {[%emt 0:00:05]} 62. Kf4 {[%emt 0:00:02]} Ra7 {[%emt 0:00:03]} 63. Kg4 {[%emt 0:00:03]} Rc7 {[%emt 0:00:04]} 64. h3 {[%emt 0:00:38]} Ra7 {[%emt 0:00:03]} 65. Ne5 {[%emt 0:00:04]} Ra1 {[%emt 0:00:04]} 66. Nf3 $2 {[%emt 0:00:11]} (66. Rb7 $18 Ra8 67. Kg3 Ra3+ 68. Kg2 Ra2+ 69. Kf1 Ra1+ 70. Ke2 Ra2+ 71. Kd1) 66... Ra2 $2 {[%emt 0:00:13][%mdl 8192]} (66... Ra7 $11 67. Ne5 Re7) 67. Rb7 {[%emt 0:00:06]} Ra4+ {[%emt 0:00:03]} 68. Kg3 {[%emt 0:00:01]} Ra3 {[%emt 0:00:04]} 69. Rb4 {[%emt 0:00:14]} Ra2 {[%emt 0:00:06]} 70. Ne5 {[%emt 0:00:19]} Ra3+ {[%emt 0:00:07]} 71. Kg4 {[%emt 0:00:02]} Ra1 $1 {[%emt 0:00:12]} 72. Nf7+ {[%emt 0:00:12]} Kg7 {[%emt 0:00:01]} 73. Ng5 {[%emt 0:00:01]} Rg1+ {[%emt 0:00:04]} 74. Kf3 {[%emt 0:00:05]} Rf1+ {[%emt 0:00:03]} 75. Kg3 {[%emt 0:00:10]} Rg1+ {[%emt 0:00:20]} 76. Kf2 {[%emt 0:00:02]} Ra1 {[%emt 0:00:04]} 77. Rb7+ {[%emt 0:00:02]} Kf6 {[%emt 0:00:01]} 78. Rf7+ {[%emt 0:00:01]} Ke5 {[%emt 0:00:01]} 79. Nf3+ {[%emt 0:00:11]} Ke6 {[%emt 0:00:04]} 80. Rf4 {[%emt 0:00:02]} Ra2+ {[%emt 0:00:17]} 81. Kg3 {[%emt 0:00:01]} Rb2 {[%emt 0:00:01]} 82. h5 {[%emt 0:00:05]} gxh5 {[%emt 0:00:05]} 83. Kh4 {[%emt 0:00:02]} Rb5 {[%emt 0:00:09]} 84. Nd4+ {[%emt 0:00:06]} Ke5 {[%emt 0:00:03]} 85. Rf5+ {[%emt 0:00:02] Weighted Error Value: White=0.38/Black=0.61} 1-0